fUSD/lending_fUSD_20251110
["ID","MTS","AMOUNT","RATE_DAILY","PERIOD"]
[393575877,1762807236205,-306.0,0.00016582,2]
[393575878,1762807236237,-306.0,0.00016691,2]
[393575879,1762807236267,-306.0,0.00016937,2]
[393575880,1762807236299,-306.0,0.0001701,2]
[393575881,1762807236329,-493.0,0.00017033,2]
[393575882,1762807236465,-220.019192,0.00017101,2]
[393575883,1762807239000,-272.980808,0.00017101,2]
[393575884,1762807239034,-2500.0,0.00017157,2]
[393575885,1762807239064,-1200.0,0.00017161,2]
[393575886,1762807239093,-216.73597184,0.00017162,2]
[393575887,1762807239123,-494.4798361,0.00017173,2]
[393575888,1762807239155,-138.61676812,0.00017199,2]
[393575889,1762807239248,-354.38323188,0.00017199,2]
[393575890,1762807242037,-300.0,0.00017244,2]
[393575891,1762807242065,-300.0,0.00017244,2]
[393575892,1762807242093,-1200.0,0.00017245,2]
[393575893,1762807242121,-1057.49158586,0.00017246,2]
[393575894,1762807242148,-494.47983601,0.00017254,2]
[393575895,1762807242176,-449.98227613,0.00017256,2]
[393575896,1762807242211,-500.0,0.00017256,2]
[393575897,1762807242242,-500.0,0.00017256,2]
[393575898,1762807242364,-396.102604,0.00017256,2]
[393575899,1762807248152,-15.08214797,0.00017256,2]
[393575908,1762807578001,-432.3883,0.00016577,2]
[393575909,1762807578024,-567.6117,0.00016709,2]
[393575910,1762807786456,1780.76,8.61e-05,2]
[393575911,1762807786670,1780.76,9.046e-05,2]
[393575912,1762807786889,1780.76,9.481e-05,2]
[393575913,1762807787105,1780.76,9.917e-05,2]
[393575914,1762807787308,1780.76,0.00010352,2]
[393575915,1762807787546,1096.21,0.00010787,2]
[393575916,1762807787567,684.55,0.00010787,2]
[393575917,1762807787789,1780.76,0.00011223,2]
[393575918,1762807788055,1780.76,0.00011658,2]
[393575919,1762807788272,1780.76,0.00012094,2]
[393575920,1762807788484,1780.76,0.00012529,2]
[393575921,1762807788860,1780.76,0.00012964,2]
[393575922,1762807789107,411.66,0.000134,2]
[393575923,1762807789129,1369.1,0.000134,2]
[393575924,1762807789340,1780.76,0.00013835,2]
[393575925,1762807789550,1780.76,0.00014271,2]
[393575926,1762807789802,1780.76,0.00014706,2]
[393575927,1762807795443,-369.44081654,0.00015141,2]
[393575928,1762807797800,-192.31896509,0.00015141,2]
[393575932,1762807831430,-505.6086,0.00015141,2]
[393575934,1762807831442,-713.39161837,0.00015141,2]
[393575935,1762807831451,-1780.76,0.00015577,2]
[393575936,1762807831461,-595.70893959,0.00016012,2]
[393575937,1762807831481,-263.24968353,0.00016012,2]
[393575938,1762807831541,-921.80137688,0.00016012,2]
[393575939,1762807831551,-153.157903,0.00016287,2]
[393575940,1762807831650,-190.292097,0.00016287,2]
[393575941,1762807831660,-181.76,0.00016321,2]
[393575942,1762807831670,-1045.2891728,0.00016448,2]
[393575953,1762807837363,-735.4708272,0.00016448,2]
[393575954,1762807837373,-500.0,0.00016609,2]
[393575955,1762807837383,-275.1583,0.00016709,2]
[393575956,1762807837392,-268.312034,0.00016797,2]
[393575957,1762807837402,-840.32413772,0.00016882,2]
[393575958,1762807837414,-359.67586228,0.00016882,2]
[393575959,1762807837424,-245.82559858,0.00016883,2]
[393575960,1762807837470,-1534.93440142,0.00016883,2]
[393575961,1762807837480,-200.0,0.00016883,2]
[393575962,1762807837490,-250.0,0.00017,2]
[393575963,1762807837499,-258.26165129,0.00017057,2]
[393575964,1762807837510,-258.26165129,0.00017115,2]
[393575965,1762807837519,-168.0,0.00017119,2]
[393575966,1762807837529,-300.0,0.00017155,2]
[393575967,1762807837539,-300.0,0.00017155,2]
[393575968,1762807837548,-2500.0,0.00017157,2]
[393575969,1762807837558,-1000.0,0.00017157,2]
[393575970,1762807837567,-300.0,0.00017171,2]
[393575971,1762807837576,-921.0,0.00017172,2]
[393575972,1762807837585,-1359.84829779,0.00017173,2]
[393575973,1762807837595,-258.26165129,0.00017173,2]
[393575974,1762807837604,-395.58386888,0.00017173,2]
[393575975,1762807837614,-195.06237462,0.00017173,2]
[393575976,1762807837628,-168.0,0.00017219,2]
[393575978,1762807837637,-156.79830578,0.00017245,2]
[393575979,1762807837646,-207.31242024,0.00017246,2]
[393575981,1762807837656,-250.0,0.00017246,2]
[393575984,1762807837666,-151.0,0.00017246,2]
[393575986,1762807837681,-151.0,0.00017246,2]
[393575988,1762807837690,-250.0,0.00017246,2]
[393575990,1762807837700,-151.0,0.00017246,2]
[393575992,1762807837709,-151.0,0.00017246,2]
[393575994,1762807837719,-250.0,0.00017246,2]
[393575996,1762807837728,-151.0,0.00017246,2]
[393575998,1762807837741,-151.0,0.00017246,2]
[393576000,1762807837750,-250.0,0.00017246,2]
[393576002,1762807837761,-151.0,0.00017246,2]
[393576004,1762807837771,-151.0,0.00017246,2]
[393576006,1762807837782,-250.0,0.00017246,2]
[393576008,1762807837792,-151.0,0.00017246,2]
[393576010,1762807837806,-250.0,0.00017246,2]
[393576012,1762807837816,-250.0,0.00017246,2]
[393576014,1762807837826,-151.0,0.00017246,2]
[393576016,1762807837836,-151.0,0.00017246,2]
[393576018,1762807837845,-250.0,0.00017246,2]
[393576020,1762807837855,-250.0,0.00017246,2]
[393576022,1762807837865,-151.0,0.00017246,2]
[393576025,1762807837876,-151.0,0.00017246,2]
[393576027,1762807837887,-250.0,0.00017246,2]
[393576029,1762807837896,-151.0,0.00017246,2]
[393576031,1762807837906,-250.0,0.00017246,2]
[393576033,1762807837919,-151.0,0.00017246,2]
[393576035,1762807837928,-250.0,0.00017246,2]
[393576037,1762807837939,-250.0,0.00017246,2]
[393576039,1762807837949,-151.0,0.00017246,2]
[393576041,1762807837958,-151.0,0.00017246,2]
[393576043,1762807837968,-151.0,0.00017246,2]
[393576045,1762807837978,-250.0,0.00017246,2]
[393576047,1762807837990,-250.0,0.00017246,2]
[393576049,1762807838000,-151.0,0.00017246,2]
[393576051,1762807838009,-151.0,0.00017246,2]
[393576053,1762807838019,-250.0,0.00017246,2]
[393576055,1762807838031,-250.0,0.00017246,2]
[393576057,1762807838040,-151.0,0.00017246,2]
[393576058,1762807838050,-250.0,0.00017246,2]
[393576059,1762807838059,-151.0,0.00017246,2]
[393576060,1762807838069,-250.0,0.00017246,2]
[393576061,1762807838079,-250.0,0.00017246,2]
[393576062,1762807838088,-250.0,0.00017246,2]
[393576063,1762807838098,-250.0,0.00017246,2]
[393576064,1762807838108,-250.0,0.00017246,2]
[393576065,1762807838122,-250.0,0.00017246,2]
[393576066,1762807838131,-250.0,0.00017246,2]
[393576067,1762807838141,-250.0,0.00017246,2]
[393576068,1762807838151,-250.0,0.00017246,2]
[393576069,1762807838161,-250.0,0.00017246,2]
[393576070,1762807838170,-250.0,0.00017246,2]
[393576071,1762807838180,-250.0,0.00017246,2]
[393576072,1762807838189,-250.0,0.00017246,2]
[393576073,1762807838200,-250.0,0.00017246,2]
[393576074,1762807838209,-250.0,0.00017246,2]
[393576075,1762807838219,-1359.84829772,0.00017254,2]
[393576076,1762807838228,-395.5838688,0.00017254,2]
[393576077,1762807838241,-500.0,0.00017256,2]
[393576078,1762807838250,-500.0,0.00017256,2]
[393576079,1762807838260,-420000.0,0.00017257,2]
[393576080,1762807838270,-500.0,0.00017273,2]
[393576081,1762807838280,-168.0,0.00017305,2]
[393576082,1762807838290,-1359.84829772,0.00017335,2]
[393576083,1762807838299,-395.5838688,0.00017335,2]
[393576084,1762807838312,-493.0,0.00017352,2]
[393576085,1762807838322,-150.0,0.00017379,2]
[393576086,1762807838331,-150.0,0.00017386,2]
[393576087,1762807838341,-1359.84829772,0.00017415,2]
[393576088,1762807838351,-395.5838688,0.00017415,2]
[393576089,1762807838360,-493.0,0.00017496,2]
[393576090,1762807838370,-1359.84829772,0.00017496,2]
[393576091,1762807838379,-395.5838688,0.00017496,2]
[393576092,1762807838389,-1359.84829772,0.00017577,2]
[393576093,1762807838399,-395.5838688,0.00017577,2]
[393576094,1762807838408,-221.96065187,0.0001762,2]
[393576095,1762807838418,-493.0,0.00017635,2]
[393576096,1762807838429,-1359.84829772,0.00017658,2]
[393576097,1762807838439,-395.5838688,0.00017658,2]
[393576098,1762807838448,-493.0,0.00017705,2]
[393576099,1762807838458,-1359.84829772,0.00017738,2]
[393576100,1762807838467,-395.5838688,0.00017738,2]
[393576101,1762807838477,-1727.02579728,0.00017761,2]
[393576102,1762807838489,-1359.84829772,0.00017819,2]
[393576103,1762807838499,-395.5838688,0.00017819,2]
[393576104,1762807838511,-1000.0,0.00017821,2]
[393576105,1762807838520,-168.0,0.0001787,2]
[393576106,1762807838530,-500.0,0.0001788,2]
[393576107,1762807838540,-150.0,0.0001788,2]
[393576108,1762807838550,-150.0,0.0001788,2]
[393576109,1762807838559,-150.0,0.0001788,2]
[393576110,1762807838569,-150.0,0.0001788,2]
[393576111,1762807838578,-150.0,0.0001788,2]
[393576112,1762807838588,-19356.17758,0.00017895,2]
[393576113,1762807838598,-493.0,0.00017899,2]
[393576114,1762807838607,-5000.0,0.00017899,2]
[393576115,1762807838617,-500.0,0.00017899,2]
[393576116,1762807838627,-500.0,0.00017899,2]
[393576117,1762807838637,-500.0,0.00017899,2]
[393576118,1762807838646,-500.0,0.00017899,2]
[393576119,1762807838657,-500.0,0.00017899,2]
[393576120,1762807838666,-503.47993958,0.00017899,2]
[393576121,1762807838675,-500.0,0.00017899,2]
[393576122,1762807838688,-500.0,0.00017899,2]
[393576123,1762807838697,-500.0,0.00017899,2]
[393576124,1762807838707,-500.0,0.00017899,2]
[393576125,1762807838716,-534.26307802,0.00017899,2]
[393576126,1762807838726,-500.0,0.00017899,2]
[393576127,1762807838737,-205.87972136,0.00017899,2]
[393576128,1762807838747,-500.0,0.00017899,2]
[393576129,1762807838756,-500.0,0.00017899,2]
[393576130,1762807838766,-814.74,0.00017899,2]
[393576131,1762807838775,-500.0,0.00017899,2]
[393576132,1762807838785,-500.0,0.00017899,2]
[393576133,1762807838795,-500.0,0.00017899,2]
[393576134,1762807838808,-413.78133242,0.00017899,2]
[393576135,1762807838818,-500.0,0.00017899,2]
[393576136,1762807838828,-500.0,0.00017899,2]
[393576137,1762807838839,-500.0,0.00017899,2]
[393576138,1762807838849,-500.0,0.00017899,2]
[393576139,1762807838859,-150.4240917,0.00017899,2]
[393576140,1762807838869,-150.0,0.00017899,2]
[393576141,1762807838881,-500.0,0.00017899,2]
[393576142,1762807838892,-500.0,0.00017899,2]
[393576143,1762807838908,-500.0,0.00017899,2]
[393576144,1762807838924,-150.0,0.00017899,2]
[393576145,1762807838935,-150.0,0.00017899,2]
[393576146,1762807838945,-500.0,0.00017899,2]
[393576147,1762807838955,-150.75616642,0.000179,2]
[393576148,1762807838965,-1359.84829772,0.000179,2]
[393576149,1762807838975,-290.60368652,0.000179,3]
[393576150,1762807838987,-395.5838688,0.000179,2]
[393576151,1762807838998,-229.10271012,0.000179,2]
[393576152,1762807839008,-493.0,0.00017927,2]
[393576153,1762807839018,-191.38606082,0.00017973,2]
[393576154,1762807839029,-500.0,0.00017982,2]
[393576155,1762807839039,-180.83529612,0.0001799,2]
[393576156,1762807839050,-151.0,0.00017997,2]
[393576157,1762807839061,-151.0,0.00017997,2]
[393576158,1762807839070,-151.0,0.00017997,2]
[393576159,1762807839081,-500.0,0.00017998,2]
[393576160,1762807839091,-500.0,0.00017999,2]
[393576161,1762807839100,-500.0,0.00017999,2]
[393576162,1762807839110,-500.0,0.00017999,2]
[393576163,1762807839120,-500.0,0.00017999,2]
[393576164,1762807839130,-500.0,0.00017999,2]
[393576165,1762807839141,-500.0,0.00017999,2]
[393576166,1762807839151,-500.0,0.00017999,2]
[393576167,1762807839161,-500.0,0.00017999,2]
[393576168,1762807839171,-500.0,0.00017999,2]
[393576169,1762807839181,-500.0,0.00017999,2]
[393576170,1762807839192,-500.0,0.00017999,2]
[393576171,1762807839202,-500.0,0.00017999,2]
[393576172,1762807839212,-500.0,0.00017999,2]
[393576173,1762807839223,-538.97549019,0.00017999,2]
[393576174,1762807839235,-371655.1867801,0.00017999,2]
[393576175,1762807839245,-9454.4468577,0.00017999,2]
[393576176,1762807839255,-500.0,0.00017999,2]
[393576177,1762807839266,-500.0,0.00017999,2]
[393576178,1762807839280,-500.0,0.00017999,2]
[393576179,1762807839290,-500.0,0.00017999,2]
[393576180,1762807839300,-500.0,0.00017999,2]
[393576181,1762807839310,-500.0,0.00017999,2]
[393576182,1762807839319,-500.0,0.00017999,2]
[393576183,1762807839330,-500.0,0.00017999,2]
[393576184,1762807839339,-500.0,0.00017999,2]
[393576185,1762807839349,-500.0,0.00017999,2]
[393576186,1762807839360,-500.0,0.00017999,2]
[393576187,1762807839370,-500.0,0.00017999,2]
[393576188,1762807839380,-500.0,0.00017999,2]
[393576189,1762807839390,-500.0,0.00017999,2]
[393576190,1762807839400,-500.0,0.00017999,2]
[393576191,1762807839410,-500.0,0.00017999,2]
[393576192,1762807839420,-500.0,0.00017999,2]
[393576193,1762807839429,-500.0,0.00017999,2]
[393576194,1762807839440,-500.0,0.00017999,2]
[393576195,1762807839450,-500.0,0.00017999,2]
[393576196,1762807839460,-248.08180814,0.00017999,2]
[393576197,1762807839470,-524.89,0.00017999,2]
[393576198,1762807839480,-500.0,0.00017999,2]
[393576199,1762807839492,-588.74165764,0.00017999,2]
[393576200,1762807839502,-500.0,0.00017999,2]
[393576201,1762807839512,-500.0,0.00017999,2]
[393576202,1762807839522,-307.45218061,0.00017999,2]
[393576203,1762807839531,-500.0,0.00017999,2]
[393576204,1762807839540,-538.08323017,0.00017999,2]
[393576205,1762807839550,-4200.0,0.00018,2]
[393576206,1762807839559,-353.69626663,0.00018,2]
[393576207,1762807839569,-1309010.38659522,0.00018,2]
[393576208,1762807839578,-241.30947163,0.00018,2]
[393576209,1762807839588,-608218.93953873,0.00018,2]
[393576210,1762807839605,-795.02073269,0.00018,2]
[393576211,1762807839617,-7723.9337847,0.00018,2]
[393576212,1762807839628,-373.57020428,0.00018,2]
[393576213,1762807839640,-329.32448114,0.00018,2]
[393576214,1762807839666,-16806.59843106,0.00018,2]
[393576215,1762807839677,-275.25607837,0.00018,2]
[393576216,1762807842503,-5576.36178528,0.00017157,2]
[393576217,1762807842525,-2762.081125,0.00017157,2]
[393576231,1762807842691,-270.76163892,0.00017157,2]
[393576233,1762807842803,-567.08207262,0.00017157,2]
[393576239,1762807845663,-93783.1030233,0.00017157,2]
[393576240,1762807845677,-644.87500048,0.00017157,2]
[393576241,1762807845691,-607.29,0.00017157,2]
[393576242,1762807845911,-2324.29556668,0.00017157,2]
[393576243,1762807845923,-662.07574449,0.00017157,2]
[393576244,1762807845934,-738.4500015,0.00017157,2]
[393576245,1762807845992,-2167.06027064,0.00017157,2]
[393576249,1762807961651,757.22,0.00013699,2]
[393576255,1762808199862,176.7,0.00013147,2]
[393576256,1762808478892,1201.32707385,0.00015513,2]
[393576257,1762808833675,151.0,0.00015613,2]
[393576258,1762808834285,151.0,0.00015613,2]
[393576259,1762808835150,151.0,0.00015613,2]
[393576260,1762808835569,151.0,0.00015613,2]
[393576261,1762808836178,151.0,0.00015613,2]
[393576262,1762808836807,151.0,0.00015613,2]
[393576263,1762808837413,151.0,0.00015613,2]
[393576264,1762808838038,151.0,0.00015613,2]
[393576265,1762808838647,151.0,0.00015613,2]
[393576266,1762808839294,151.0,0.00015613,2]
[393576267,1762808839922,151.0,0.00015613,2]
[393576268,1762808878784,-166.66,0.00015613,2]
[393576269,1762808879018,-500.0,0.00015613,2]
[393576270,1762808879050,-166.66,0.00015941,2]
[393576271,1762808879083,-166.66,0.0001627,2]
[393576272,1762808879113,-175.69479946,0.0001631,2]
[393576273,1762808879141,-200.0,0.0001641,2]
[393576274,1762808879172,-475.23,0.0001641,2]
[393576275,1762808879200,-1966.53,0.0001641,2]
[393576276,1762808879228,-176.7,0.00016434,2]
[393576277,1762808879258,-1200.0,0.00016598,2]
[393576278,1762808879288,-166.66,0.00016599,2]
[393576279,1762808879319,-250.0,0.00016669,2]
[393576280,1762808879349,-250.0,0.00016669,2]
[393576281,1762808879379,-250.0,0.00016669,2]
[393576282,1762808879409,-250.0,0.00016669,2]
[393576283,1762808879438,-250.0,0.00016669,2]
[393576284,1762808879468,-250.0,0.00016669,2]
[393576285,1762808879498,-250.0,0.00016669,2]
[393576286,1762808879527,-250.0,0.00016669,2]
[393576287,1762808879556,-250.0,0.00016669,2]
[393576288,1762808879591,-250.0,0.00016669,2]
[393576289,1762808879621,-250.0,0.00016669,2]
[393576290,1762808879651,-250.0,0.00016669,2]
[393576291,1762808879680,-250.0,0.00016669,2]
[393576292,1762808879709,-250.0,0.00016669,2]
[393576293,1762808879740,-250.0,0.00016669,2]
[393576294,1762808879768,-151.0,0.00016669,2]
[393576295,1762808879797,-250.0,0.00016669,2]
[393576296,1762808879825,-250.0,0.00016669,2]
[393576297,1762808879855,-151.0,0.00016669,2]
[393576298,1762808879884,-250.0,0.00016669,2]
[393576299,1762808879914,-250.0,0.00016669,2]
[393576300,1762808879943,-151.0,0.00016669,2]
[393576301,1762808879973,-250.0,0.00016669,2]
[393576302,1762808880003,-250.0,0.00016669,2]
[393576303,1762808880034,-250.0,0.00016669,2]
[393576304,1762808880065,-151.0,0.00016669,2]
[393576305,1762808880097,-250.0,0.00016669,2]
[393576306,1762808880134,-250.0,0.00016669,2]
[393576307,1762808880168,-151.0,0.00016669,2]
[393576308,1762808880200,-250.0,0.00016669,2]
[393576309,1762808880231,-151.0,0.00016669,2]
[393576310,1762808880263,-151.0,0.00016669,2]
[393576311,1762808880294,-151.0,0.00016669,2]
[393576312,1762808880324,-151.0,0.00016669,2]
[393576313,1762808880358,-151.0,0.00016669,2]
[393576314,1762808880387,-151.0,0.00016669,2]
[393576315,1762808880417,-250.0,0.00016669,2]
[393576316,1762808880448,-250.0,0.00016669,2]
[393576317,1762808880476,-250.0,0.00016669,2]
[393576318,1762808880505,-250.0,0.00016669,2]
[393576319,1762808880537,-250.0,0.00016669,2]
[393576320,1762808880566,-250.0,0.00016669,2]
[393576321,1762808880595,-250.0,0.00016669,2]
[393576322,1762808880626,-250.0,0.00016669,2]
[393576323,1762808880656,-239.75520452,0.00016669,2]
[393576324,1762808880685,-166.66,0.00016817,2]
[393576325,1762808880715,-166.66,0.00016927,2]
[393576326,1762808880744,-298.963,0.00016957,2]
[393576327,1762808880774,-1200.0,0.00017056,2]
[393576328,1762808880803,-2500.0,0.00017057,2]
[393576329,1762808880832,-1000.0,0.00017057,2]
[393576330,1762808880855,-166.66,0.00017066,2]
[393576331,1762808880867,-500.0,0.00017066,2]
[393576332,1762808880878,-166.66,0.00017066,2]
[393576333,1762808880889,-166.66,0.00017066,2]
[393576334,1762808880900,-175.69479946,0.00017066,2]
[393576335,1762808880911,-200.0,0.00017066,2]
[393576336,1762808880923,-475.23,0.00017066,2]
[393576337,1762808880934,-1921.44409525,0.00017066,2]
[393576338,1762808880944,-45.08590475,0.00017073,2]
[393576339,1762808880955,-176.7,0.00017073,2]
[393576340,1762808880966,-1200.0,0.00017073,2]
[393576341,1762808880977,-166.66,0.00017073,2]
[393576342,1762808880989,-250.0,0.00017073,2]
[393576343,1762808881000,-250.0,0.00017073,2]
[393576344,1762808881011,-250.0,0.00017073,2]
[393576345,1762808881022,-250.0,0.00017073,2]
[393576346,1762808881033,-250.0,0.00017073,2]
[393576347,1762808881044,-250.0,0.00017073,2]
[393576348,1762808881060,-250.0,0.00017073,2]
[393576349,1762808881073,-250.0,0.00017073,2]
[393576350,1762808881087,-250.0,0.00017073,2]
[393576351,1762808881103,-250.0,0.00017073,2]
[393576352,1762808881116,-250.0,0.00017073,2]
[393576353,1762808881131,-250.0,0.00017073,2]
[393576354,1762808881143,-250.0,0.00017073,2]
[393576355,1762808881156,-250.0,0.00017073,2]
[393576356,1762808881170,-250.0,0.00017073,2]
[393576357,1762808881182,-151.0,0.00017073,2]
[393576358,1762808881194,-250.0,0.00017073,2]
[393576359,1762808881207,-250.0,0.00017073,2]
[393576360,1762808881219,-151.0,0.00017073,2]
[393576361,1762808881231,-250.0,0.00017073,2]
[393576362,1762808881245,-250.0,0.00017073,2]
[393576363,1762808881257,-151.0,0.00017073,2]
[393576364,1762808881269,-250.0,0.00017073,2]
[393576365,1762808881282,-183.97385986,0.00017073,2]
[393576366,1762808881293,-66.02614014,0.00017145,2]
[393576367,1762808881306,-92.93388115,0.00017145,2]
[393576368,1762808881317,-157.06611885,0.00017145,2]
[393576369,1762808881331,-151.0,0.00017145,2]
[393576370,1762808881343,-191.93388115,0.00017145,2]
[393576371,1762808881355,-58.06611885,0.00017145,2]
[393576372,1762808881366,-250.0,0.00017145,2]
[393576373,1762808881379,-151.0,0.00017145,2]
[393576374,1762808881391,-40.93388115,0.00017145,2]
[393576375,1762808881401,-209.06611885,0.00017145,2]
[393576376,1762808881412,-151.0,0.00017145,2]
[393576377,1762808881424,-139.93388115,0.00017145,2]
[393576378,1762808881433,-11.06611885,0.00017145,2]
[393576379,1762808881446,-151.0,0.00017145,2]
[393576380,1762808881459,-151.0,0.00017145,2]
[393576381,1762808881475,-151.0,0.00017145,2]
[393576382,1762808881489,-35.93388115,0.00017145,2]
[393576383,1762808881499,-115.06611885,0.00017145,2]
[393576384,1762808881512,-250.0,0.00017145,2]
[393576385,1762808881525,-134.93388115,0.00017145,2]
[393576386,1762808881536,-115.06611885,0.00017145,2]
[393576387,1762808881549,-250.0,0.00017145,2]
[393576388,1762808881561,-134.93388115,0.00017145,2]
[393576389,1762808881571,-115.06611885,0.00017145,2]
[393576390,1762808881585,-250.0,0.00017145,2]
[393576391,1762808881598,-134.93388115,0.00017145,2]
[393576392,1762808881610,-115.06611885,0.00017145,2]
[393576393,1762808881623,-250.0,0.00017145,2]
[393576394,1762808881641,-134.93388115,0.00017145,2]
[393576395,1762808881652,-115.06611885,0.00017145,2]
[393576396,1762808881664,-239.75520452,0.00017145,2]
[393576397,1762808881677,-145.17867663,0.00017145,2]
[393576398,1762808881688,-21.48132337,0.00017145,2]
[393576399,1762808881703,-166.66,0.00017145,2]
[393576400,1762808881715,-298.963,0.00017145,2]
[393576401,1762808881727,-12.89567663,0.00017145,2]
[393576402,1762808881738,-500.0,0.00017145,2]
[393576403,1762808881749,-500.0,0.00017145,2]
[393576404,1762808881759,-187.10432337,0.00017145,2]
[393576405,1762808881771,-312.89567663,0.00017145,2]
[393576406,1762808881783,-500.0,0.00017145,2]
[393576407,1762808881793,-500.0,0.00017145,2]
[393576408,1762808881803,-500.0,0.00017145,2]
[393576409,1762808881813,-500.0,0.00017145,2]
[393576410,1762808881823,-187.10432337,0.00017145,2]
[393576411,1762808881988,-312.89567663,0.00017145,2]
[393576412,1762808881998,-500.0,0.00017145,2]
[393576413,1762808882008,-187.10432337,0.00017145,2]
[393576414,1762808882020,-312.33399204,0.00017145,2]
[393576419,1762808997273,-1000.0,0.00016366,2]
[393576420,1762808997296,-2751.0,0.00016366,2]
[393576421,1762809001147,1120.0,0.00017056,2]
[393576444,1762809031589,-80.0,0.00017056,2]
[393576445,1762809031598,-2500.0,0.00017057,2]
[393576446,1762809031606,-2927.3648153,0.00017057,2]
[393576449,1762809031645,-6.2066847,0.00017057,2]
[393576450,1762809031655,-705.23,0.00017145,2]
[393576451,1762809031665,-353.69626663,0.00017145,2]
[393576452,1762809031675,-300.0,0.00017155,2]
[393576453,1762809031684,-500.0,0.00017156,2]
[393576454,1762809031694,-216.55561588,0.00017156,2]
[393576455,1762809031703,-293.82162969,0.00017156,2]
[393576456,1762809031713,-500.0,0.00017156,2]
[393576457,1762809031731,-500.0,0.00017156,2]
[393576458,1762809031741,-500.0,0.00017156,2]
[393576459,1762809031750,-500.0,0.00017156,2]
[393576460,1762809031760,-500.0,0.00017156,2]
[393576461,1762809031769,-500.0,0.00017156,2]
[393576462,1762809031779,-500.0,0.00017156,2]
[393576463,1762809031788,-500.0,0.00017156,2]
[393576464,1762809031797,-500.0,0.00017156,2]
[393576465,1762809031806,-500.0,0.00017156,2]
[393576466,1762809031816,-500.0,0.00017156,2]
[393576467,1762809031825,-500.0,0.00017156,2]
[393576468,1762809031834,-500.0,0.00017156,2]
[393576469,1762809031844,-500.0,0.00017156,2]
[393576470,1762809031853,-500.0,0.00017156,2]
[393576471,1762809031862,-500.0,0.00017156,2]
[393576472,1762809031872,-398.78896108,0.00017156,2]
[393576473,1762809031881,-500.0,0.00017156,2]
[393576474,1762809031890,-500.0,0.00017156,2]
[393576475,1762809031903,-500.0,0.00017156,2]
[393576476,1762809031912,-500.0,0.00017156,2]
[393576477,1762809031921,-500.0,0.00017156,2]
[393576478,1762809031930,-500.0,0.00017156,2]
[393576480,1762809031939,-500.0,0.00017156,2]
[393576482,1762809031950,-500.0,0.00017156,2]
[393576484,1762809031959,-500.0,0.00017156,2]
[393576486,1762809031969,-500.0,0.00017156,2]
[393576487,1762809031978,-500.0,0.00017156,2]
[393576488,1762809031988,-4367.50065922,0.00017157,2]
[393576490,1762809032000,-1116.68,0.00017157,2]
[393576491,1762809032011,-1192.96581108,0.00017157,2]
[393576492,1762809032022,-497.76627144,0.00017157,2]
[393576493,1762809032527,-1191.90978058,0.00017157,2]
[393576494,1762809032540,-1149.40805194,0.00017157,2]
[393576495,1762809032553,-1704.08943889,0.00017157,2]
[393576496,1762809032563,-126956.71255504,0.00017157,2]
[393576497,1762809032575,-171719.5312029,0.00017157,2]
[393576498,1762809032585,-3772.34889464,0.00017159,2]
[393576499,1762809032595,-7225.41976461,0.00017165,2]